bitfinex-derivatives/quotes_BTCF0:USTF0_20210105
["timestamp","ask_amount","ask_price","bid_price","bid_amount"]
[1609860488146,0.11767,32158.0,32119.0,2.22868463]
[1609860488347,4.2201,32157.0,32119.0,2.22868463]
[1609860488748,4.2201,32157.0,32135.0,0.13632608]
[1609860489348,4.3134,32157.0,32135.0,0.13632608]
[1609860489549,4.3134,32157.0,32135.0,0.13012608]
[1609860490552,0.01897966,32154.0,32135.0,0.13012608]
[1609860490751,0.13632608,32136.0,32135.0,0.00172608]
[1609860490952,0.13632608,32136.0,32127.0,0.10675]
[1609860491152,3.8143,32134.0,32127.0,0.10675]
[1609860491754,3.8143,32134.0,32110.0,4.1532]
[1609860492153,0.13632608,32136.0,32107.0,2.24222533]
[1609860492352,4.8535,32130.0,32107.0,2.38086533]
[1609860492753,0.13632608,32108.0,32107.0,2.38086533]
[1609860492954,0.13632608,32108.0,32107.0,3.09146533]
[1609860493154,4.8535,32130.0,32107.0,3.09146533]
[1609860493353,0.02075545,33116.0,32107.0,2.38086533]
[1609860493553,0.0946,32154.0,32107.0,2.38086533]
[1609860493754,5.067,32154.0,32111.0,5.1177]
[1609860493955,0.0941,32145.0,32107.0,2.38086533]
[1609860494155,4.1687,32141.0,32107.0,2.38086533]
[1609860494459,4.1687,32141.0,32107.0,0.13864]
[1609860494655,4.1687,32141.0,32115.0,0.13632608]
[1609860495055,4.1687,32141.0,32115.0,0.22970608]
[1609860495455,4.2617,32141.0,32115.0,0.22970608]
[1609860495657,0.0941,32145.0,32115.0,0.22970608]
[1609860495857,0.0921,32150.0,32116.0,4.1692]
[1609860496056,0.01895999,32151.0,32116.0,4.1692]
[1609860496657,0.01895999,32151.0,32127.0,0.13632608]
[1609860496859,0.01895999,32151.0,32127.0,0.27796608]
[1609860497258,0.96958923,32153.0,32127.0,0.27796608]
[1609860497259,0.2936,32153.0,32127.0,0.27796608]
[1609860497958,0.2936,32153.0,32127.0,0.14164]
[1609860498358,0.3862,32153.0,32127.0,0.14164]
[1609860498761,0.13632608,32128.0,32127.0,0.14164]
[1609860499359,0.13632608,32128.0,32118.0,0.13632608]
[1609860500761,0.13632608,32119.0,32118.0,0.13632608]
[1609860500961,0.12099,32140.0,32118.0,0.13632608]
[1609860501161,0.2936,32153.0,32118.0,0.13632608]
[1609860501760,0.2936,32153.0,32124.0,3.6955]
[1609860501961,0.2936,32153.0,32124.0,3.79189]
[1609860502361,0.2936,32153.0,32128.0,4.8412]
[1609860502761,0.11767,32158.0,32133.0,0.13632608]
[1609860503163,0.56224652,32161.0,32133.0,0.28572608]
[1609860503766,0.3001,32165.0,32133.0,0.28572608]
[1609860504166,0.3001,32165.0,32139.0,3.758]
[1609860504771,0.0942,32164.0,32144.0,0.13632608]
[1609860504969,0.3001,32165.0,32144.0,0.13632608]
[1609860505169,0.11059,32164.0,32144.0,0.13632608]
[1609860505370,0.11059,32164.0,32146.0,4.9804]
[1609860506771,0.11059,32164.0,32149.0,0.13632608]
[1609860508774,0.11059,32164.0,32157.0,0.13632608]
[1609860509373,0.10651,32172.0,32152.0,0.10332]
[1609860509976,0.10651,32172.0,32152.0,0.79412]
[1609860510674,0.13632608,32153.0,32152.0,0.79412]
[1609860513777,0.13632608,32153.0,32152.0,0.10332]
[1609860513977,0.13632608,32153.0,32147.0,0.13632608]
[1609860514176,0.13632608,32153.0,32139.0,4.01]
[1609860514777,0.13632608,32140.0,32139.0,4.01]
[1609860515377,0.13632608,32140.0,32133.0,0.28572608]
[1609860516778,0.13632608,32140.0,32139.0,0.13632608]
[1609860516979,0.14672,32164.0,32139.0,0.13632608]
[1609860518681,0.13632608,32140.0,32139.0,0.13632608]
[1609860520384,0.14672,32164.0,32139.0,0.13632608]
[1609860520585,0.10651,32172.0,32139.0,0.13632608]
[1609860520784,0.13632608,32145.0,32144.0,4.58769]
[1609860521685,0.14824,32170.0,32144.0,4.58769]
[1609860522885,0.14824,32170.0,32152.0,0.13632608]
[1609860523286,0.14824,32170.0,32144.0,4.58769]
[1609860524888,0.14824,32170.0,32149.0,0.13632608]
[1609860526187,0.24084,32170.0,32149.0,0.13632608]
[1609860526388,0.0926,32170.0,32149.0,0.13632608]
[1609860526788,0.13632608,32150.0,32149.0,0.13632608]
[1609860531497,0.13839,32169.0,32149.0,0.87612608]
[1609860531696,0.13839,32169.0,32149.0,0.13632608]
[1609860531895,0.13839,32169.0,32156.0,4.7829]
[1609860532096,0.56341238,32178.0,32152.0,0.10947]
[1609860532295,0.56341238,32178.0,32155.0,4.69]
[1609860532496,0.56341238,32178.0,32152.0,0.10947]
[1609860532697,0.56341238,32178.0,32156.0,4.5124]
[1609860532896,0.13632608,32157.0,32156.0,4.5124]
[1609860540609,0.13632608,32157.0,32152.0,0.10947]
[1609860540809,0.13632608,32153.0,32152.0,0.10947]
[1609860541010,0.13632608,32153.0,32139.0,4.7807]
[1609860542814,0.13632608,32140.0,32139.0,4.7807]
[1609860544312,0.13632608,32140.0,32133.0,0.28572608]
[1609860544913,0.13632608,32134.0,32133.0,0.28572608]
[1609860546316,0.13632608,32134.0,32133.0,4.29072608]
[1609860548122,0.13632608,32134.0,32133.0,0.28572608]
[1609860551526,0.56681517,32156.0,32133.0,0.28572608]
[1609860551929,0.56681517,32156.0,32138.0,4.3535]
[1609860552928,0.5671305,32160.0,32149.0,0.13632608]
[1609860553431,0.5671305,32160.0,32147.0,0.11005]
[1609860555028,0.13632608,32148.0,32147.0,0.11005]
[1609860557834,0.13632608,32148.0,32141.0,0.13632608]
[1609860558936,0.13632608,32142.0,32141.0,0.13632608]
[1609860562341,0.10997,32157.0,32141.0,0.23373608]
[1609860562540,0.10997,32157.0,32147.0,3.5659]
[1609860562940,0.10997,32157.0,32152.0,0.13632608]
[1609860563142,0.56882067,32160.0,32152.0,0.13632608]
[1609860563542,0.56882067,32160.0,32152.0,0.77232608]
[1609860563943,0.56878208,32162.0,32152.0,0.77232608]
[1609860564944,0.13632608,32153.0,32152.0,0.77232608]
[1609860565644,0.13632608,32153.0,32152.0,0.13632608]
[1609860566950,0.13632608,32153.0,32152.0,4.8027]
[1609860569153,0.13632608,32153.0,32141.0,0.09741]
[1609860569553,0.13632608,32153.0,32137.0,5.1121]
[1609860571057,0.09548,32157.0,32141.0,0.13632608]
[1609860571657,4.19098515,32160.0,32141.0,0.13632608]
[1609860573059,0.13632608,32142.0,32141.0,0.13632608]
[1609860574559,0.14317,32156.0,32141.0,0.13632608]
[1609860574961,0.14317,32156.0,32155.0,0.13632608]
[1609860575162,0.14317,32156.0,32155.0,0.73802608]
[1609860575961,0.56876691,32168.0,32155.0,0.73802608]
[1609860576162,0.5686623,32170.0,32155.0,0.13632608]
[1609860576361,0.5686623,32170.0,32165.0,4.4979]
[1609860576961,0.0928,32169.0,32165.0,4.4979]
[1609860577162,0.0928,32169.0,32154.0,0.0921]
[1609860577361,0.12363,32171.0,32157.0,4.1232]
[1609860577561,0.56846901,32179.0,32158.0,0.0939]
[1609860578062,0.56846901,32179.0,32157.0,4.1232]
[1609860578262,5.17202608,32180.0,32157.0,4.1232]
[1609860578462,0.23052608,32180.0,32153.0,2.21098742]
[1609860578664,0.23052608,32180.0,32161.0,4.8911]
[1609860578963,0.0942,32180.0,32172.0,0.13632608]
[1609860580667,0.56726955,32183.0,32172.0,0.13632608]
[1609860580968,0.56726955,32183.0,32176.0,0.13632608]
[1609860581670,0.56672331,32188.0,32176.0,0.13632608]
[1609860582970,0.56672331,32188.0,32161.0,4.8911]
[1609860583171,0.13632608,32177.0,32161.0,4.8911]
[1609860583371,0.0928,32176.0,32159.0,0.11737]
[1609860583572,0.0921,32175.0,32159.0,0.11737]
[1609860584973,0.0921,32175.0,32163.0,0.13632608]
[1609860585173,0.0921,32175.0,32159.0,0.11737]
[1609860585573,0.10287,32180.0,32159.0,0.11737]
[1609860585973,0.5595,32179.0,32159.0,0.11737]
[1609860586576,0.5595,32179.0,32156.0,4.8354]
[1609860587179,0.13632608,32157.0,32156.0,4.8354]
[1609860587678,0.13632608,32157.0,32149.0,0.25075608]
[1609860587878,0.13632608,32157.0,32149.0,4.53505608]
[1609860588879,0.13632608,32157.0,32150.0,0.0921]
[1609860589078,0.13632608,32161.0,32156.0,0.13632608]
[1609860589281,0.13632608,32161.0,32156.0,0.25784608]
[1609860590280,0.13632608,32161.0,32156.0,0.35044608]
[1609860590481,0.13632608,32161.0,32156.0,0.25784608]
[1609860593086,0.13632608,32161.0,32160.0,0.13632608]
[1609860593686,0.10287,32180.0,32160.0,0.13632608]
[1609860593889,0.56587149,32182.0,32160.0,5.12972608]
[1609860594689,0.71501247,32188.0,32160.0,5.12972608]
[1609860595087,0.71501247,32188.0,32175.0,0.13632608]
[1609860595289,0.14922,32188.0,32175.0,0.13632608]
[1609860595488,4.3123,32192.0,32175.0,0.13632608]
[1609860595489,0.5656436,32193.0,32175.0,0.27405608]
[1609860596288,0.5656436,32193.0,32175.0,0.13773]
[1609860596489,3.6563,32190.0,32175.0,0.13773]
[1609860596892,3.75682,32190.0,32175.0,0.13773]
[1609860597090,0.13632608,32176.0,32175.0,0.13773]
[1609860597491,0.13632608,32176.0,32168.0,0.15026]
[1609860599095,0.13632608,32172.0,32168.0,0.15026]
[1609860601595,0.13632608,32172.0,32169.0,3.8359]
[1609860602397,0.13632608,32172.0,32164.0,0.13632608]
[1609860602597,0.13632608,32172.0,32163.0,0.10539]
[1609860603101,0.13632608,32164.0,32163.0,0.10539]
[1609860603499,4.09962608,32164.0,32156.0,0.12152]
[1609860603899,4.09962608,32164.0,32147.0,4.6818]
[1609860605101,0.13632608,32148.0,32147.0,4.6818]
[1609860605300,0.13632608,32148.0,32146.0,0.13632608]
[1609860605700,0.13632608,32148.0,32135.0,2.20316907]
[1609860606302,0.13632608,32148.0,32134.0,4.4246]
[1609860607106,4.9363,32156.0,32138.0,0.13632608]
[1609860607303,4.9363,32156.0,32134.0,4.4246]
[1609860607505,4.9363,32156.0,32134.0,4.55781]
[1609860609206,0.13632608,32135.0,32134.0,4.55781]
[1609860609409,0.13632608,32135.0,32134.0,0.13321]
[1609860609809,0.13632608,32135.0,32133.0,0.13632608]
[1609860611512,0.13632608,32135.0,32127.0,0.14753]
[1609860612914,0.13632608,32135.0,32117.0,2.22668356]
[1609860613113,4.7663,32125.0,32118.0,0.13632608]
[1609860614311,4.7663,32125.0,32115.0,0.11181]
[1609860615114,0.13632608,32116.0,32109.0,0.13632608]
[1609860617214,0.13632608,32110.0,32109.0,0.13632608]
[1609860620322,0.13632608,32110.0,32100.0,2.23274713]
[1609860621121,4.4635,32116.0,32103.0,0.13632608]
[1609860621322,4.4635,32116.0,32103.0,0.24055608]
[1609860623124,4.4635,32116.0,32110.0,0.13632608]
[1609860623826,0.13329,32127.0,32110.0,0.13632608]
[1609860624026,0.2891,32138.0,32110.0,0.13632608]
[1609860624226,4.6752,32131.0,32110.0,0.13632608]
[1609860624626,4.81365,32131.0,32110.0,0.13632608]
[1609860625226,0.13632608,32111.0,32110.0,0.13632608]
[1609860625428,0.13632608,32111.0,32103.0,0.10423]
[1609860626227,4.6943,32107.0,32103.0,0.10423]
[1609860626427,4.6943,32107.0,32095.0,2.23654724]
[1609860627128,4.6943,32107.0,32103.0,0.13632608]
[1609860627329,4.6943,32107.0,32103.0,0.24550608]
[1609860627931,0.10052,32124.0,32103.0,0.24550608]
[1609860629129,0.13632608,32104.0,32103.0,0.24550608]
[1609860630437,3.6822,32113.0,32103.0,0.24550608]
[1609860631230,0.13632608,32104.0,32103.0,0.24550608]
[1609860632832,0.79632608,32104.0,32090.0,2.23797593]
[1609860633035,0.13632608,32104.0,32090.0,2.23797593]
[1609860633233,0.13632608,32091.0,32090.0,2.37430201]
[1609860633634,0.13632608,32091.0,32090.0,0.13632608]
[1609860633833,0.13632608,32091.0,32088.0,2.24246859]
[1609860635736,0.13632608,32091.0,32085.0,0.13632608]
[1609860636536,0.10588,32110.0,32085.0,0.13632608]
[1609860636737,0.10588,32110.0,32085.0,0.23121608]
[1609860636937,0.12584,32117.0,32085.0,0.23121608]
[1609860637137,0.13632608,32112.0,32107.0,0.13632608]
[1609860637737,0.12584,32117.0,32107.0,0.13632608]
[1609860637938,0.12584,32117.0,32107.0,0.63532608]
[1609860638538,0.10052,32124.0,32107.0,0.13632608]
[1609860638740,0.13845,32131.0,32107.0,0.13632608]
[1609860638940,0.13845,32131.0,32111.0,3.6397]
[1609860639140,5.1271,32151.0,32111.0,3.6397]
[1609860639339,5.1271,32151.0,32125.0,0.13632608]
[1609860639540,1.25622268,32157.0,32125.0,0.13632608]
[1609860639541,0.5833,32157.0,32125.0,0.13632608]
[1609860640040,1.184,32157.0,32125.0,0.13632608]
[1609860641239,0.13632608,32126.0,32125.0,0.13632608]
[1609860641440,0.13632608,32126.0,32121.0,0.14155]
[1609860642240,0.13632608,32126.0,32107.0,5.0598]
[1609860643243,0.1244,32134.0,32110.0,0.13632608]
[1609860644542,0.1244,32134.0,32111.0,0.0939]
[1609860645344,0.1244,32134.0,32120.0,0.13632608]
[1609860646245,0.1123,32142.0,32120.0,0.13632608]
[1609860646547,0.57957195,32150.0,32120.0,0.13632608]
[1609860647248,0.13632608,32130.0,32126.0,0.13632608]
[1609860652955,0.13632608,32130.0,32111.0,4.0569]
[1609860653355,0.12633,32138.0,32119.0,0.13632608]
[1609860653555,0.12633,32138.0,32119.0,0.25943608]
[1609860654554,0.12633,32138.0,32119.0,4.14843608]
[1609860655255,0.13632608,32120.0,32119.0,4.14843608]
[1609860655457,0.13632608,32120.0,32119.0,0.25943608]
[1609860660562,4.5312,32144.0,32119.0,0.25943608]
[1609860661264,4.5312,32144.0,32123.0,0.13632608]
[1609860661867,4.5312,32144.0,32119.0,0.12311]
[1609860662267,4.5312,32144.0,32112.0,4.2575]
[1609860662464,4.6246,32144.0,32112.0,4.2575]
[1609860662664,0.2705,32144.0,32107.0,2.26255842]
[1609860662867,4.5443,32132.0,32107.0,2.26255842]
[1609860663067,4.68361,32132.0,32107.0,2.26255842]
[1609860663268,0.13632608,32108.0,32107.0,2.26255842]
[1609860663867,0.13632608,32108.0,32105.0,0.12647]
[1609860663868,0.13632608,32108.0,32105.0,2.45997707]
[1609860665571,0.13632608,32108.0,32093.0,0.13632608]
[1609860666671,4.918,32107.0,32093.0,0.13632608]
[1609860667070,4.918,32107.0,32088.0,2.26894191]
[1609860667272,0.13632608,32089.0,32085.0,0.23121608]
[1609860677384,0.13632608,32094.0,32085.0,0.23121608]
[1609860679385,0.13632608,32086.0,32085.0,0.23121608]
[1609860683991,3.5999,32101.0,32085.0,0.23121608]
[1609860685296,0.13362,32103.0,32085.0,0.23121608]
[1609860685497,0.13362,32103.0,32092.0,0.13632608]
[1609860685895,0.13362,32103.0,32081.0,4.4864]
[1609860686496,5.4295,32115.0,32081.0,4.4864]
[1609860686896,5.4295,32115.0,32081.0,4.59073]
[1609860687397,5.4295,32115.0,32087.0,0.13632608]
[1609860687900,5.4295,32115.0,32081.0,4.59073]
[1609860689499,5.4295,32115.0,32083.0,0.13632608]
[1609860690802,0.2769,32115.0,32083.0,0.13632608]
[1609860691003,4.3895,32102.0,32081.0,0.10433]
[1609860691202,0.09128,32102.0,32081.0,0.10433]
[1609860691403,0.13632608,32082.0,32081.0,0.10433]
[1609860692104,0.13632608,32082.0,32073.0,2.25978785]
[1609860693505,0.13632608,32074.0,32073.0,2.25978785]
[1609860695405,0.13632608,32074.0,32073.0,2.39611393]
[1609860695607,0.13632608,32074.0,32073.0,0.13632608]
[1609860700009,0.13338,32085.0,32073.0,0.13632608]
[1609860700209,0.09094,32092.0,32073.0,0.13632608]
[1609860700409,0.31001248,32112.0,32073.0,0.13632608]
[1609860700610,0.01871248,32112.0,32073.0,0.13632608]
[1609860701513,0.13632608,32106.0,32097.0,0.13632608]
[1609860703414,0.13632608,32098.0,32097.0,0.13632608]
[1609860704616,0.13632608,32098.0,32093.0,4.6476]
[1609860705517,0.13632608,32094.0,32093.0,4.6476]
[1609860705716,0.13632608,32094.0,32090.0,0.13632608]
[1609860706116,0.13632608,32094.0,32081.0,3.6261]
[1609860706317,0.13632608,32094.0,32074.0,2.25212014]
[1609860707519,4.4013,32096.0,32079.0,0.13632608]
[1609860707918,4.4013,32096.0,32079.0,0.27871608]
[1609860708318,4.4013,32096.0,32079.0,0.14239]
[1609860708922,4.4013,32096.0,32074.0,2.25212014]
[1609860709123,4.52588,32096.0,32074.0,2.25212014]
[1609860709525,0.13632608,32075.0,32074.0,2.38844622]
[1609860709926,0.13632608,32075.0,32074.0,0.13632608]
[1609860711827,0.13632608,32075.0,32072.0,0.11429]
[1609860712229,0.13632608,32075.0,32062.0,2.25797816]
[1609860713232,0.13632608,32075.0,32061.0,2.25980955]
[1609860713431,0.13632608,32069.0,32068.0,0.13632608]
[1609860714937,0.14638,32088.0,32068.0,0.13632608]
[1609860715337,0.12458,32096.0,32068.0,0.25541608]
[1609860715537,0.2862,32100.0,32076.0,0.13632608]
[1609860717439,0.13632608,32083.0,32080.0,0.13632608]
[1609860718039,0.10626,32094.0,32080.0,0.13632608]
[1609860718841,0.5778,32093.0,32080.0,0.13632608]
[1609860719440,0.13632608,32081.0,32075.0,0.22971608]
[1609860721443,0.13632608,32076.0,32075.0,0.22971608]
[1609860731750,4.93552608,32076.0,32075.0,0.22971608]
[1609860732150,4.93552608,32076.0,32075.0,0.09339]
[1609860732351,4.93552608,32076.0,32069.0,2.27576763]
[1609860733553,0.13632608,32070.0,32069.0,2.41209371]
[1609860736359,0.13632608,32070.0,32069.0,0.13632608]
[1609860737060,0.13632608,32070.0,32068.0,2.39515415]
[1609860738665,0.10014,32087.0,32068.0,2.39515415]
[1609860738863,4.424,32089.0,32068.0,2.39515415]
[1609860739665,4.424,32089.0,32073.0,0.13632608]
[1609860741665,4.424,32089.0,32077.0,0.13632608]
[1609860742468,4.424,32089.0,32068.0,0.11909]
[1609860742667,4.424,32089.0,32067.0,2.27571537]
[1609860743571,4.424,32089.0,32072.0,0.13632608]
[1609860744071,4.424,32089.0,32071.0,0.09446]
[1609860745571,0.13632608,32072.0,32071.0,0.09446]
[1609860748575,0.87272608,32072.0,32071.0,0.09446]
[1609860748776,0.87272608,32072.0,32067.0,0.13632608]
[1609860749578,0.13632608,32068.0,32067.0,0.13632608]
[1609860752179,0.13632608,32068.0,32056.0,2.27698379]
[1609860752882,0.13632608,32068.0,32055.0,2.27700714]
[1609860753480,4.3014,32056.0,32055.0,2.27700714]
[1609860753679,4.43772608,32056.0,32055.0,2.27700714]
[1609860753881,4.43772608,32056.0,32055.0,2.08795543]
[1609860754279,0.13632608,32056.0,32055.0,2.08795543]
[1609860754480,0.13632608,32056.0,32055.0,2.05805543]
[1609860754880,0.25657608,32056.0,32055.0,2.05805543]
[1609860755080,0.25657608,32056.0,32029.0,2.27686065]
[1609860755681,0.13632608,32042.0,32038.0,0.13632608]
[1609860756280,0.12025,32056.0,32038.0,0.13632608]
[1609860757481,4.01838448,32057.0,32038.0,0.13632608]
[1609860757680,0.13632608,32041.0,32038.0,0.13632608]
[1609860759786,0.13216,32063.0,32038.0,0.13632608]
[1609860759984,0.29877847,32067.0,32039.0,4.6774]
[1609860760885,0.00387461,32066.0,32039.0,4.6774]
[1609860761685,0.13632608,32040.0,32038.0,0.13632608]
[1609860767297,4.0947,32066.0,32039.0,0.0949]
[1609860767497,0.0038605,32068.0,32039.0,0.0949]
[1609860767699,0.0038605,32068.0,32057.0,0.13632608]
[1609860767897,0.10623,32070.0,32057.0,0.13632608]
[1609860768096,0.00386573,32073.0,32057.0,0.13632608]
[1609860768296,0.64626573,32073.0,32057.0,0.13632608]
[1609860768697,0.6424,32073.0,32057.0,0.13632608]
[1609860769097,0.00387452,32079.0,32057.0,0.13632608]
[1609860769297,4.7109,32067.0,32057.0,0.13632608]
[1609860769696,0.13632608,32058.0,32050.0,0.13537]
[1609860771098,0.10451,32069.0,32050.0,0.13537]
[1609860771798,0.10451,32069.0,32066.0,0.13632608]
[1609860772197,0.1488,32078.0,32066.0,0.13632608]
[1609860772397,0.00387219,32079.0,32066.0,0.27853608]
[1609860773200,0.0038753,32083.0,32066.0,0.27853608]
[1609860773702,0.0038753,32083.0,32082.0,0.13632608]
[1609860775406,4.9351882,32094.0,32082.0,0.13632608]
[1609860775603,4.9351882,32094.0,32066.0,0.14221]
[1609860775802,5.0579882,32094.0,32077.0,0.13632608]
[1609860776504,0.0038969,32093.0,32077.0,0.13632608]
[1609860777804,0.13632608,32078.0,32073.0,0.12728]
[1609860778007,0.13632608,32078.0,32066.0,0.14221]
[1609860778208,4.0214,32070.0,32044.0,3.566]
[1609860779709,0.13632608,32060.0,32059.0,0.13632608]
[1609860780311,0.13632608,32060.0,32051.0,0.0928]
[1609860780712,0.13632608,32060.0,32045.0,0.0949]
[1609860780912,4.6602,32054.0,32045.0,0.0949]
[1609860781712,0.13632608,32046.0,32045.0,0.23122608]
[1609860781912,0.13632608,32046.0,32045.0,0.13632608]
[1609860782214,0.13476,32060.0,32045.0,0.13632608]
[1609860782813,0.13398,32067.0,32045.0,0.13632608]
[1609860783715,0.13398,32067.0,32058.0,0.13632608]
[1609860784315,0.13398,32067.0,32049.0,0.14785]
[1609860784917,0.6497,32065.0,32049.0,0.14785]
[1609860785817,0.13632608,32050.0,32049.0,0.14785]
[1609860789123,0.13632608,32050.0,32046.0,0.13632608]
[1609860792724,0.13632608,32050.0,32047.0,0.093]
[1609860807240,0.00388249,32066.0,32047.0,0.093]
[1609860807641,0.00388249,32066.0,32048.0,4.0861]
[1609860808042,0.13398,32067.0,32048.0,4.0861]
[1609860808441,0.00388717,32068.0,32048.0,4.0861]
[1609860808643,0.01333053,32069.0,32048.0,4.0861]
[1609860809843,0.01333053,32069.0,32062.0,0.13632608]
[1609860810645,0.00389026,32069.0,32062.0,0.13632608]
[1609860811444,0.01334412,32069.0,32062.0,0.13632608]
[1609860811746,0.13632608,32063.0,32062.0,0.13632608]
[1609860811944,0.25416608,32063.0,32062.0,0.13632608]
[1609860815854,0.13632608,32063.0,32062.0,0.13632608]
[1609860816454,0.01335062,32070.0,32062.0,0.13632608]
[1609860817057,0.00390219,32076.0,32062.0,0.13632608]
[1609860817657,0.00390219,32076.0,32062.0,4.70052608]
[1609860817857,0.00390219,32076.0,32075.0,0.13632608]
[1609860818058,0.13632608,32077.0,32075.0,0.13632608]
[1609860819861,0.13632608,32077.0,32076.0,4.2554]
[1609860820262,0.00390716,32084.0,32076.0,4.2554]
[1609860820462,0.00390798,32085.0,32076.0,4.2554]
[1609860821064,0.13188171,32087.0,32076.0,4.2554]
[1609860821565,0.12797,32087.0,32076.0,4.2554]
[1609860821765,0.12797,32087.0,32083.0,0.13632608]
[1609860821964,0.00390988,32088.0,32076.0,4.2554]
[1609860822367,0.00390988,32088.0,32076.0,4.37403]
[1609860823666,0.00390988,32088.0,32077.0,0.0921]
[1609860823869,0.14023501,32090.0,32084.0,0.13632608]
[1609860824068,0.14023501,32090.0,32084.0,0.26030608]
[1609860824466,0.14023501,32090.0,32084.0,0.85820608]
[1609860825068,0.14023501,32090.0,32085.0,0.093]
[1609860825372,0.13632608,32090.0,32085.0,0.093]
[1609860825970,0.13632608,32090.0,32089.0,0.13632608]
[1609860827572,0.13632608,32090.0,32086.0,4.5183]
[1609860827773,0.13632608,32090.0,32084.0,0.12398]
[1609860827973,0.13632608,32090.0,32088.0,0.13632608]
[1609860831578,0.13632608,32090.0,32086.0,3.906]
[1609860832079,0.13632608,32090.0,32087.0,0.0942]
[1609860832279,0.13632608,32090.0,32086.0,3.906]
[1609860833579,0.13632608,32090.0,32084.0,0.26030608]
[1609860833981,0.13632608,32085.0,32084.0,0.26030608]
[1609860838281,0.13632608,32085.0,32084.0,0.12398]
[1609860838683,0.13632608,32085.0,32076.0,0.11863]
[1609860838883,0.13632608,32085.0,32068.0,3.76262]
[1609860839887,0.13632608,32069.0,32068.0,3.76262]
[1609860840085,0.13632608,32069.0,32064.0,0.13632608]
[1609860841984,0.13632608,32065.0,32064.0,0.13632608]
[1609860844690,0.13632608,32065.0,32061.0,0.09288]
[1609860844890,0.13632608,32065.0,32063.0,0.5402]
[1609860845089,0.13632608,32065.0,32043.0,2.07596606]
[1609860845291,0.13632608,32065.0,32057.0,0.09853]
[1609860845890,0.13632608,32065.0,32059.0,0.13632608]
[1609860846292,0.13632608,32065.0,32062.0,4.4239]
[1609860846692,0.13632608,32065.0,32063.0,0.0935]
[1609860847898,0.13632608,32065.0,32064.0,0.13632608]
[1609860848998,0.04282608,32065.0,32064.0,5.21382608]
[1609860849200,0.00388022,32085.0,32065.0,0.0937]
[1609860849800,0.27839115,32086.0,32065.0,0.0937]
[1609860849999,0.13632608,32073.0,32070.0,0.13632608]
[1609860851101,0.13632608,32073.0,32071.0,0.0937]
[1609860852200,0.13632608,32073.0,32072.0,0.093]
[1609860854704,0.13011,32080.0,32072.0,0.093]
[1609860855507,0.2745,32086.0,32072.0,0.093]
[1609860855705,0.0133882,32090.0,32072.0,0.093]
[1609860855906,0.13632608,32079.0,32078.0,0.13632608]
[1609860857206,0.13632608,32079.0,32078.0,0.23022608]
[1609860857411,0.13632608,32079.0,32078.0,4.36602608]
[1609860859408,0.09909,32091.0,32078.0,4.36602608]
[1609860859808,0.00390577,32094.0,32078.0,4.36602608]
[1609860860008,0.13632608,32087.0,32086.0,0.13632608]
[1609860861213,0.13632608,32087.0,32086.0,0.23062608]
[1609860861611,0.12869,32091.0,32086.0,0.23062608]
[1609860862013,0.12869,32091.0,32090.0,0.13632608]
[1609860862211,0.13632608,32092.0,32090.0,0.13632608]
[1609860862612,0.14783,32098.0,32090.0,0.13632608]
[1609860862813,0.00390093,32101.0,32090.0,0.13632608]
[1609860863311,0.00390034,32102.0,32091.0,0.0947]
[1609860863913,0.13632608,32092.0,32090.0,0.13632608]
[1609860864316,0.13632608,32092.0,32078.0,4.1358]
[1609860866015,0.1486,32095.0,32082.0,0.13632608]
[1609860866616,0.1486,32095.0,32078.0,4.1358]
[1609860868014,0.13632608,32079.0,32078.0,4.27212608]
[1609860868217,0.13632608,32079.0,32078.0,0.13632608]
[1609860871317,0.00946967,32091.0,32078.0,0.13632608]
[1609860871518,0.02822411,32091.0,32078.0,3.65822608]
[1609860872019,0.00948187,32093.0,32084.0,0.13632608]
[1609860872418,0.70654283,32095.0,32084.0,0.13632608]
[1609860872419,0.17687155,32095.0,32084.0,0.13632608]
[1609860873920,0.13632608,32085.0,32084.0,0.13632608]
[1609860895247,0.13632608,32085.0,32084.0,0.86752608]
[1609860903653,0.15810607,32095.0,32084.0,0.86752608]
[1609860904054,0.15810607,32095.0,32092.0,0.13632608]
[1609860905656,0.0944,32094.0,32092.0,0.13632608]
[1609860905857,3.6153,32093.0,32092.0,0.13632608]
[1609860906058,3.75162608,32093.0,32087.0,0.13632608]
[1609860906757,3.75162608,32093.0,32079.0,3.7101]
[1609860908062,3.6153,32093.0,32082.0,0.13632608]
[1609860908261,0.00949065,32094.0,32082.0,0.13632608]
[1609860908562,0.00949065,32094.0,32082.0,3.67872608]
[1609860909962,0.01877902,32090.0,32082.0,3.67872608]
[1609860910161,0.13632608,32083.0,32082.0,3.67872608]
[1609860910361,0.13632608,32083.0,32082.0,0.13632608]
[1609860910564,3.98222608,32083.0,32082.0,0.13632608]
[1609860913268,3.98222608,32083.0,32064.0,2.41487091]
[1609860913468,0.13632608,32083.0,32064.0,2.41487091]
[1609860913668,3.5686,32065.0,32064.0,2.28624091]
[1609860913868,0.09212,32074.0,32064.0,2.28624091]
[1609860914069,0.13632608,32065.0,32061.0,2.28669036]
[1609860914469,3.6301,32062.0,32061.0,0.66199036]
[1609860915270,3.6301,32062.0,32061.0,0.45399036]
[1609860915471,0.13632608,32065.0,32061.0,0.36059036]
[1609860915675,4.5329,32062.0,32061.0,0.36059036]
[1609860916774,0.13632608,32065.0,32061.0,0.36059036]
[1609860918877,0.13632608,32065.0,32052.0,4.611]
[1609860919279,0.01298783,32059.0,32052.0,4.611]
[1609860919677,0.14443783,32059.0,32027.0,2.08812646]
[1609860919877,0.14443783,32059.0,32028.0,3.6505]
[1609860920077,0.14443783,32059.0,32028.0,3.7428]
[1609860920278,0.13632608,32046.0,32028.0,0.0923]
[1609860920478,0.10122,32050.0,32037.0,4.4367]
[1609860920680,0.10122,32050.0,32028.0,0.0923]
[1609860920879,0.10122,32050.0,32037.0,4.3085]
[1609860921279,0.10122,32050.0,32032.0,0.0937]
[1609860921479,0.13523812,32059.0,32032.0,0.0937]
[1609860921678,0.13523812,32059.0,32040.0,5.2254]
[1609860922180,0.2715642,32059.0,32058.0,0.13632608]
[1609860922380,0.26777608,32059.0,32058.0,0.13632608]
[1609860925184,0.26777608,32059.0,32047.0,4.6687]
[1609860926184,0.26777608,32059.0,32036.0,0.10778]
[1609860926384,3.7731,32058.0,32053.0,0.13632608]
[1609860927988,0.13145,32059.0,32053.0,0.13632608]
[1609860928188,0.13115543,32066.0,32053.0,0.13632608]
[1609860928390,0.13632608,32054.0,32053.0,0.13632608]